bitfinex/quotes_SOLUSD_20250901
["timestamp","ask_amount","ask_price","bid_price","bid_amount"]
[1756697492559,1e-08,198.3,198.29,188.41394748]
[1756697492756,1e-08,198.3,198.29,162.41394748]
[1756697492933,1e-08,198.3,198.29,202.25394748]
[1756697493362,1e-08,198.3,198.29,166.13193631]
[1756697493530,1e-08,198.3,198.29,205.95193631]
[1756697493727,1e-08,198.3,198.29,166.13193631]
[1756697494059,1e-08,198.3,198.29,206.09102439]
[1756697495644,1e-08,198.3,198.29,202.37303556]
[1756697495850,1e-08,198.3,198.29,206.09102439]
[1756697497450,1e-08,198.3,198.29,202.37303556]
[1756697497649,1e-08,198.3,198.29,206.09102439]
[1756697498039,1e-08,198.3,198.29,221.27102439]
[1756697498243,0.06,198.32,198.3,0.14216157]
[1756697498444,0.06,198.32,198.31,43.59216132]
[1756697498661,0.06,198.32,198.31,3.77216132]
[1756697499062,0.06,198.32,198.31,43.59216132]
[1756697500265,0.06,198.32,198.31,48.63477137]
[1756697503357,0.06,198.32,198.31,52.3527602]
[1756697503738,0.06,198.32,198.31,48.63477137]
[1756697504037,0.06,198.32,198.31,61.04790573]
[1756697504562,0.06,198.32,198.31,201.0431177]
[1756697504935,0.06,198.32,198.31,206.08572775]
[1756697505136,0.06,198.32,198.31,166.26584417]
[1756697505444,0.06,198.32,198.31,188.75226133]
[1756697505963,0.06,198.32,198.31,197.45733098]
[1756697506347,0.06,198.32,198.31,193.73934215]
[1756697506567,0.06,198.32,198.31,153.93934215]
[1756697506866,0.06,198.32,198.31,193.73934215]
[1756697507546,0.06,198.32,198.31,211.05292499]
[1756697508553,0.06,198.34,198.32,13.73775558]
[1756697508753,0.06,198.34,198.33,43.70965128]
[1756697509567,0.06,198.34,198.33,48.75175282]
[1756697509865,3.77798883,198.34,198.33,43.56748971]
[1756697510666,3.77798883,198.34,198.33,3.76748971]
[1756697510853,3.77798883,198.34,198.33,43.56748971]
[1756697511051,3.77798883,198.34,198.33,3.76748971]
[1756697511644,8.81983616,198.34,198.33,3.76748971]
[1756697511963,8.81983616,198.34,198.32,39.8]
[1756697512163,3.71798883,198.33,198.32,39.8]
[1756697512364,3.71798883,198.33,198.23,8.76256368]
[1756697512665,3.71798883,198.28,198.24,39.8]
[1756697513052,31.10184733,198.34,198.24,39.8]
[1756697513367,3.71798883,198.31,198.27,0.14216157]
[1756697513555,3.71798883,198.31,198.28,39.8]
[1756697514167,3.71798883,198.3,198.28,39.8]
[1756697514547,3.71798883,198.31,198.28,179.8]
[1756697514769,3.71798883,198.32,198.28,184.84332142]
[1756697515078,0.06,198.34,198.3,3.71798883]
[1756697515290,0.06,198.34,198.31,39.8]
[1756697515782,0.06,198.34,198.33,5.04210154]
[1756697516073,0.06,198.34,198.33,44.84210154]
[1756697516455,0.06,198.34,198.33,39.8]
[1756697518054,0.06,198.34,198.33,44.84210154]
[1756697518254,0.06,198.34,198.33,39.8]
[1756697518682,0.06,198.34,198.33,179.8]
[1756697519985,0.06,198.34,198.33,202.29784595]
[1756697520677,0.06,198.34,198.33,202.27784595]
[1756697522570,0.06,198.34,198.33,206.38741554]
[1756697522774,0.0200069,198.34,198.33,206.38741554]
[1756697523252,0.0200069,198.34,198.33,202.27784595]
[1756697523458,0.0200069,198.34,198.33,162.49784595]
[1756697523659,0.0200069,198.34,198.33,202.27784595]
[1756697524269,0.0200069,198.34,198.33,280.97784595]
[1756697527283,0.0200069,198.34,198.33,277.25985712]
[1756697527471,0.0200069,198.34,198.33,280.97784595]
[1756697528070,0.0200069,198.34,198.33,277.25985712]
[1756697528379,0.0200069,198.34,198.33,306.97784595]
[1756697528581,0.0200069,198.34,198.33,280.97784595]
[1756697528798,0.0200069,198.34,198.33,140.97784595]
[1756697530396,1e-08,198.36,198.35,39.59559401]
[1756697530598,1e-08,198.36,198.35,57.21574441]
[1756697531608,1e-08,198.36,198.35,88.25733755]
[1756697531780,1e-08,198.36,198.35,228.25733755]
[1756697533591,1e-08,198.36,198.35,243.43733755]
[1756697534307,1e-08,198.36,198.35,228.25733755]
[1756697534999,1e-08,198.36,198.35,243.43733755]
[1756697535501,1e-08,198.36,198.35,247.15532655]
[1756697535802,1e-08,198.36,198.35,221.15532655]
[1756697536185,1e-08,198.36,198.35,299.85532655]
[1756697536385,0.06,198.38,198.37,26.0]
[1756697536620,0.06,198.38,198.37,144.60216157]
[1756697537109,0.06,198.38,198.37,148.3201504]
[1756697537475,0.06,198.38,198.37,153.36123524]
[1756697537890,0.06,198.38,198.37,113.60123524]
[1756697538095,0.06,198.38,198.37,153.36123524]
[1756697538589,0.06,198.38,198.37,182.13682925]
[1756697540903,0.06,198.38,198.37,178.41884042]
[1756697541108,0.06,198.38,198.37,182.13682925]
[1756697542200,26.0,198.5,198.42,13.59559401]
[1756697542406,3.71798883,198.48,198.44,5.03930659]
[1756697542625,3.71798883,198.48,198.45,39.74]
[1756697543531,3.71798883,198.47,198.45,39.74]
[1756697544024,5.03780644,198.5,198.45,39.74]
[1756697544214,3.71798883,198.47,198.45,39.74]
[1756697544418,3.71798883,198.47,198.46,39.74]
[1756697545633,3.71798883,198.47,198.46,179.74]
[1756697545827,3.71798883,198.47,198.46,39.74]
[1756697546516,8.75656851,198.47,198.41,93.98564557]
[1756697546834,5.03857968,198.47,198.42,39.74]
[1756697547044,5.03857968,198.47,198.37,20.18757541]
[1756697547207,5.03857968,198.47,198.38,39.72]
[1756697547407,5.03857968,198.47,198.37,15.146543]
[1756697547408,17.63494185,198.47,198.37,15.146543]
[1756697547608,17.63494185,198.47,198.38,39.72]
[1756697547826,15.148837,198.46,198.39,39.72]
[1756697548027,3.71798883,198.4,198.39,39.72]
[1756697548937,3.71798883,198.4,198.39,179.72]
[1756697549740,8.75831141,198.4,198.39,140.0]
[1756697549950,8.75831141,198.4,198.34,5.18393106]
[1756697549951,8.75831141,198.4,198.34,0.14216157]
[1756697550112,3.71798883,198.36,198.35,39.72]
[1756697550537,3.71798883,198.36,198.33,0.03]
[1756697550712,3.71798883,198.34,198.33,0.03]
[1756697551929,29.71798883,198.34,198.33,0.03]
[1756697552867,34.75983616,198.34,198.33,0.03]
[1756697556153,36.78080416,198.34,198.33,0.03]
[1756697557130,27.10341132,198.34,198.3,0.03]
[1756697557336,3.71798883,198.31,198.3,0.03]
[1756697558344,29.71798883,198.31,198.3,0.03]
[1756697558948,34.76059888,198.31,198.3,0.03]
[1756697559950,31.04261005,198.31,198.3,0.03]
[1756697560156,3.71798883,198.31,198.3,0.03]
[1756697560672,5.73936483,198.31,198.3,0.03]
[1756697560875,3.71798883,198.31,198.3,0.03]
[1756697562842,26.0,198.33,198.3,0.03]
[1756697563047,3.71798883,198.31,198.3,0.03]
[1756697563252,3.71798883,198.32,198.3,0.03]
[1756697563456,3.71798883,198.32,198.3,140.03]
[1756697563964,3.71798883,198.31,198.3,140.03]
[1756697565148,3.71798883,198.32,198.3,140.03]
[1756697566273,3.71798883,198.31,198.3,0.03]
[1756697567587,26.0,198.34,198.3,0.03]
[1756697567792,3.71798883,198.31,198.3,0.03]
[1756697569281,3.71798883,198.31,198.3,140.03]
[1756697571201,31.04203369,198.34,198.3,140.03]
[1756697571498,3.71798883,198.31,198.3,179.75]
[1756697572705,3.71798883,198.31,198.3,39.75]
[1756697573202,8.76059888,198.31,198.3,0.03]
[1756697574904,12.47858771,198.31,198.3,0.03]
[1756697575102,23.92091888,198.31,198.3,0.03]
[1756697577307,7.43597766,198.3,198.28,0.03]
[1756697577606,33.59559401,198.28,198.26,0.03]
[1756697577783,13.59559401,198.26,198.19,0.03]
[1756697577986,3.71798883,198.2,198.19,0.03]
[1756697578700,7.43597766,198.2,198.19,0.03]
[1756697578909,14.50378433,198.2,198.19,0.03]
[1756697579086,10.7857955,198.2,198.19,0.03]
[1756697580004,5.74038683,198.2,198.19,0.03]
[1756697580203,2.022398,198.2,198.19,0.03]
[1756697580594,5.74038683,198.2,198.19,0.03]
[1756697580803,3.71798883,198.2,198.19,140.03]
[1756697581308,3.71798883,198.2,198.19,0.03]
[1756697581309,8.7633975,198.2,198.19,0.03]
[1756697584713,12.48138633,198.2,198.19,0.03]
[1756697585200,12.48138633,198.2,198.17,0.03]
[1756697585400,3.71798883,198.18,198.17,0.03]
[1756697585905,8.7633975,198.2,198.17,0.03]
[1756697585906,5.04540867,198.2,198.17,0.03]
[1756697586105,3.71798883,198.18,198.17,0.03]
[1756697587618,3.71798883,198.18,198.17,140.03]
[1756697588004,3.71798883,198.2,198.17,0.03]
[1756697588408,3.71798883,198.19,198.17,0.03]
[1756697591017,3.71798883,198.19,198.17,140.03]
[1756697591748,4.28889958,198.29,198.18,3.71798883]
[1756697591749,3.71798883,198.23,198.18,3.71798883]
[1756697592110,5.04341101,198.28,198.19,3.71798883]
[1756697592308,5.04341101,198.28,198.2,3.71798883]
[1756697592309,3.71798883,198.26,198.2,3.71798883]
[1756697592529,3.71798883,198.26,198.2,43.43798883]
[1756697592715,3.71798883,198.25,198.2,43.43798883]
[1756697592915,3.71798883,198.23,198.19,39.72]
[1756697593531,3.71798883,198.24,198.19,39.72]
[1756697594804,3.71798883,198.24,198.18,8.79389714]
[1756697595007,3.71798883,198.24,198.19,39.72]
[1756697595626,3.71798883,198.24,198.19,43.43798883]
[1756697595814,3.71798883,198.24,198.2,39.72]
[1756697596327,3.71798883,198.25,198.2,39.72]
[1756697596635,3.71798883,198.24,198.2,39.72]
[1756697597351,3.71798883,198.22,198.2,39.72]
[1756697597512,5.04419974,198.25,198.2,39.72]
[1756697597713,3.71798883,198.21,198.18,0.03]
[1756697597929,3.71798883,198.19,198.18,0.03]
[1756697598735,8.76365208,198.19,198.18,0.03]
[1756697599832,26.0,198.22,198.18,0.03]
[1756697600022,3.71798883,198.19,198.18,0.03]
[1756697600723,31.04494982,198.22,198.18,0.03]
[1756697600923,3.71798883,198.19,198.18,0.03]
[1756697601616,3.71798883,198.19,198.18,140.03]
[1756697603040,8.76365208,198.19,198.18,140.03]
[1756697604025,8.76365208,198.19,198.18,0.03]
[1756697606145,8.76365208,198.19,198.17,0.03]
[1756697606356,3.71798883,198.18,198.17,0.03]
[1756697608136,34.76390668,198.18,198.17,0.03]
[1756697609659,31.04591785,198.18,198.17,0.03]
[1756697609851,34.76390668,198.18,198.17,0.03]
[1756697610249,8.76390668,198.18,198.17,0.03]
[1756697611552,3.71798883,198.18,198.17,0.03]
[1756697611760,8.76390668,198.18,198.17,0.03]
[1756697613357,48.48390668,198.18,198.17,1e-08]
[1756697613557,48.48390668,198.18,198.16,0.03]
[1756697613744,3.71798883,198.17,198.16,0.03]
[1756697614163,26.0,198.16,198.14,0.03]
[1756697614374,3.71798883,198.15,198.14,0.03]
[1756697614859,34.76467063,198.15,198.14,0.03]
[1756697616553,34.76467063,198.15,198.14,1e-08]
[1756697618073,74.48467063,198.15,198.14,1e-08]
[1756697619453,34.76467063,198.15,198.14,1e-08]
[1756697619756,74.48467063,198.15,198.14,1e-08]
[1756697621064,13.73775558,198.14,198.09,0.2]
[1756697621461,7.43597766,198.1,198.09,0.2]
[1756697621655,47.15597766,198.1,198.09,0.2]
[1756697621874,52.20393323,198.1,198.09,0.2]
[1756697624463,52.20393323,198.1,198.06,0.2]
[1756697624464,26.0,198.07,198.06,0.2]
[1756697624777,69.43798883,198.07,198.06,0.2]
[1756697625075,70.91088171,198.07,198.06,0.2]
[1756697625259,74.62887054,198.07,198.04,0.2]
[1756697625584,3.71798883,198.05,198.04,0.2]
[1756697625777,43.43798883,198.05,198.04,1e-08]
[1756697625980,45.46222883,198.05,198.03,0.2]
[1756697626156,7.43597766,198.04,198.01,0.03]
[1756697626358,7.43597766,198.02,198.01,0.03]
[1756697627168,12.48597261,198.02,198.01,0.03]
[1756697627367,48.48798378,198.02,198.01,0.03]
[1756697628577,8.76798378,198.02,198.01,0.03]
[1756697632683,12.48597261,198.02,198.01,0.03]
[1756697633988,13.59559401,198.01,197.99,0.03]
[1756697634165,60.75157167,198.0,197.99,0.03]
[1756697634691,62.77642767,198.0,197.99,0.03]
[1756697635572,67.82693272,198.0,197.99,0.03]
[1756697636483,34.76849388,198.0,197.99,0.03]
[1756697638086,38.48648271,198.0,197.99,0.03]
[1756697638996,34.76849388,198.0,197.99,0.03]
[1756697639369,2.024548,198.03,197.99,0.03]
[1756697639569,3.71798883,198.0,197.99,0.03]
[1756697639772,33.43597766,198.0,197.99,0.03]
[1756697640072,38.48648271,198.0,197.99,0.03]
[1756697640394,71.46274183,198.0,197.99,0.03]
[1756697640573,3.71798883,198.0,197.99,0.03]
[1756697640976,7.43597766,198.0,197.99,0.03]
[1756697641496,12.48648271,198.0,197.99,0.03]
[1756697641808,13.59559401,197.99,197.95,0.03]
[1756697641972,8.76925922,197.97,197.95,0.03]
[1756697643909,48.48925922,197.97,197.95,0.03]
[1756697645985,62.08485323,197.97,197.95,0.03]
[1756697646392,77.27357223,197.97,197.95,0.03]
[1756697647204,63.67797822,197.97,197.95,0.03]
[1756697647809,44.79127039,197.97,197.95,0.03]
[1756697648105,8.76925922,197.97,197.95,0.03]
[1756697651591,36.79431922,197.97,197.95,0.03]
[1756697652005,50.38991323,197.97,197.95,0.03]
[1756697652396,36.79431922,197.97,197.95,0.03]
[1756697652593,34.76925922,197.97,197.95,0.03]
[1756697653011,74.50925922,197.97,197.95,0.03]
[1756697656092,13.59559401,197.96,197.94,0.03]
[1756697656295,43.45798883,197.95,197.94,0.03]
[1756697656708,43.45798883,197.95,197.92,0.03]
[1756697656709,13.59559401,197.94,197.92,0.03]
[1756697656899,43.45798883,197.93,197.8,3.71798883]
[1756697657117,3.71798883,197.86,197.8,3.71798883]
[1756697657497,3.71798883,197.86,197.73,49.06320516]
[1756697657693,3.71798883,197.82,197.75,13.59559401]
[1756697657912,3.71798883,197.82,197.76,3.71798883]
[1756697658094,34.89432628,197.86,197.77,3.71798883]
[1756697658298,3.71798883,197.83,197.77,3.71798883]
[1756697658839,3.71798883,197.82,197.77,3.71798883]
[1756697659131,3.71798883,197.82,197.77,8.7741635]
[1756697659503,3.71798883,197.82,197.75,13.59559401]
[1756697659699,3.71798883,197.82,197.76,3.71798883]
[1756697660217,3.71798883,197.82,197.75,13.59559401]
[1756697660534,3.71798883,197.81,197.77,140.0]
[1756697661636,8.77336717,197.81,197.77,140.0]
[1756697662199,3.71798883,197.81,197.77,140.0]
[1756697662627,3.71798883,197.79,197.77,140.0]
[1756697663841,3.71798883,197.78,197.77,140.0]
[1756697664719,8.77411179,197.78,197.77,140.0]
[1756697665047,3.71798883,197.79,197.77,140.0]
[1756697665344,3.71798883,197.78,197.77,140.03]
[1756697665651,5.05510059,197.82,197.77,140.03]
[1756697665953,3.71798883,197.79,197.77,140.03]
[1756697666113,5.05510059,197.82,197.77,0.03]
[1756697666114,3.71798883,197.78,197.77,0.03]
[1756697666957,8.77411179,197.78,197.77,0.03]
[1756697667320,5.05612296,197.78,197.77,0.03]
[1756697667513,3.71798883,197.78,197.77,0.03]
[1756697668245,5.05535614,197.81,197.77,0.03]
[1756697668431,31.0551579,197.82,197.77,0.03]
[1756697668614,2.64248652,197.83,197.77,3.74798883]
[1756697668938,3.71798883,197.8,197.77,0.03]
[1756697669117,3.71798883,197.78,197.77,140.03]
[1756697669639,3.71798883,197.79,197.77,140.03]
[1756697670138,3.71798883,197.8,197.77,140.03]
[1756697670841,3.71798883,197.8,197.77,0.03]
[1756697671139,70.79433409,197.85,197.77,0.03]
[1756697671318,3.71798883,197.8,197.77,0.03]
[1756697671518,70.79433409,197.85,197.77,0.03]
[1756697671713,3.71798883,197.8,197.77,0.03]
[1756697672035,70.79433409,197.85,197.77,0.03]
[1756697672036,3.71798883,197.78,197.77,0.03]
[1756697674026,8.77411179,197.78,197.77,0.03]
[1756697674230,5.05535614,197.81,197.77,0.03]
[1756697674418,3.71798883,197.78,197.77,0.03]
[1756697674745,5.05535614,197.81,197.77,0.03]
[1756697674914,3.71798883,197.78,197.77,0.03]
[1756697676222,8.77411179,197.78,197.77,0.03]
[1756697677839,2.64218228,197.87,197.77,3.74798883]
[1756697678040,29.71798883,197.83,197.77,0.03]
[1756697678266,3.71798883,197.8,197.77,0.03]
[1756697678423,26.0,197.83,197.77,140.03]
[1756697678627,3.71798883,197.79,197.77,140.03]
[1756697679829,26.0,197.83,197.77,140.03]
[1756697680025,3.71798883,197.79,197.77,140.03]
[1756697680235,5.05571346,197.8,197.77,140.03]
[1756697680436,3.71798883,197.79,197.77,140.03]
[1756697681035,26.0,197.83,197.77,140.03]
[1756697681036,5.05542144,197.81,197.77,140.03]
[1756697681248,5.05542144,197.81,197.77,143.74798883]
[1756697681440,8.77341027,197.81,197.77,140.03]
[1756697681944,3.71798883,197.78,197.77,140.03]
[1756697682167,3.71798883,197.78,197.77,0.03]
[1756697682367,8.77411179,197.78,197.77,0.03]
[1756697683150,8.77411179,197.78,197.75,0.03]
[1756697683456,3.71798883,197.76,197.75,0.03]
[1756697684344,8.77462313,197.76,197.75,0.03]
[1756697685656,34.77462313,197.76,197.75,0.03]
[1756697686352,8.77462313,197.76,197.75,0.03]
[1756697686654,2.64327066,197.8,197.75,0.03]
[1756697686867,3.71798883,197.78,197.75,0.03]
[1756697687562,3.71798883,197.77,197.75,0.03]
[1756697687741,5.05535614,197.81,197.75,0.03]
[1756697687936,12.63616142,197.85,197.75,3.74798883]
[1756697688158,3.71798883,197.81,197.75,3.74798883]
[1756697688356,26.0,197.82,197.75,3.74798883]
[1756697688564,3.71798883,197.81,197.75,3.74798883]
[1756697688762,3.71798883,197.81,197.76,3.71798883]
[1756697688944,3.71798883,197.82,197.76,3.71798883]
[1756697689866,3.71798883,197.86,197.81,5.05535614]
[1756697690051,3.71798883,197.86,197.81,8.77334497]
[1756697690660,3.71798883,197.86,197.8,5.05554833]
[1756697690962,8.77213466,197.86,197.8,3.71798883]
[1756697691157,5.05414583,197.86,197.79,43.73798883]
[1756697691464,3.71798883,197.85,197.79,3.71798883]
[1756697691650,5.05414583,197.86,197.79,3.71798883]
[1756697691848,8.7728221,197.84,197.79,3.71798883]
[1756697692056,11.02435419,197.84,197.78,45.96952092]
[1756697692262,5.05483327,197.84,197.79,5.96952092]
[1756697692460,5.96952092,197.85,197.8,5.96952092]
[1756697693047,5.96952092,197.85,197.78,45.05603482]
[1756697693048,3.717989,197.91,197.81,19.56511493]
[1756697693258,2.70209127,197.92,197.82,0.14216157]
[1756697693259,5.96952092,197.9,197.82,0.14216157]
[1756697693446,5.96952092,197.9,197.85,5.96952092]
[1756697693867,11.02284993,197.89,197.84,5.96952092]
[1756697694351,26.0,197.91,197.85,5.96952092]
[1756697694352,31.05290861,197.91,197.85,5.96952092]
[1756697694552,5.96952092,197.9,197.85,5.96952092]
[1756697694958,5.96952092,197.9,197.84,5.96952092]
[1756697695548,5.96952092,197.9,197.84,11.02399021]
[1756697695751,5.96952092,197.9,197.82,39.96]
[1756697695752,5.96952092,197.87,197.82,39.96]
[1756697695944,5.96952092,197.86,197.82,39.96]
[1756697696148,5.96952092,197.87,197.84,140.0]
[1756697696343,5.96952092,197.86,197.8,5.96952092]
[1756697696648,5.96952092,197.85,197.8,40.0]
[1756697696859,5.96952092,197.85,197.8,45.96952092]
[1756697697063,5.96952092,197.85,197.8,40.0]
[1756697697570,5.96952092,197.85,197.79,5.96952092]
[1756697697774,5.96952092,197.84,197.79,45.94952092]
[1756697698280,11.02395721,197.85,197.79,45.94952092]
[1756697698767,11.02395721,197.85,197.79,51.00536439]
[1756697699148,11.02395721,197.85,197.79,45.92952092]
[1756697699470,11.02395721,197.85,197.79,185.92952092]
[1756697701166,5.96952092,197.84,197.8,39.92]
[1756697701679,5.96952092,197.84,197.79,140.0]
[1756697701854,5.96952092,197.84,197.79,179.92]
[1756697702055,5.96952092,197.85,197.79,185.88952092]
[1756697702256,15.194104,197.91,197.84,5.96952092]
[1756697702583,0.06,197.85,197.83,39.92]
[1756697703078,0.06,197.85,197.79,140.0]
[1756697703383,0.06,197.85,197.81,39.92]
[1756697703556,0.06,197.85,197.82,5.05510059]
[1756697703751,0.06,197.85,197.82,5.96952092]
[1756697703952,5.96952092,197.83,197.79,140.0]
[1756697704149,5.96952092,197.82,197.79,39.92]
[1756697704687,5.96952092,197.81,197.7,5.969521]
[1756697704855,5.96952092,197.78,197.75,39.95]
[1756697705251,5.05587103,197.79,197.75,0.03]
[1756697705464,5.96952092,197.78,197.75,0.03]
[1756697705862,5.96952092,197.81,197.75,5.99952092]
[1756697706075,5.115871,197.85,197.76,5.96952092]
[1756697706076,5.96952092,197.82,197.76,5.96952092]
[1756697706274,0.06,197.85,197.76,5.96952092]
[1756697706477,5.96952092,197.82,197.77,45.86952092]
[1756697706648,0.06,197.85,197.81,5.96952092]
[1756697706848,0.06,197.85,197.84,5.96952092]
[1756697707375,0.06,197.85,197.84,140.0]
[1756697707770,0.06,197.85,197.84,145.96952092]
[1756697707970,0.06,197.85,197.84,151.02411048]
[1756697708577,0.06,197.85,197.84,164.76186606]
[1756697708763,0.06,197.85,197.84,158.79234514]
[1756697708962,0.06,197.85,197.84,164.76186606]
[1756697709358,0.0184747,197.85,197.84,164.76186606]
[1756697709656,0.06,197.87,197.86,39.73775558]
[1756697709861,0.06,197.87,197.86,45.7072765]
[1756697710071,1e-08,197.87,197.86,66.81679742]
[1756697710273,0.06,197.92,197.91,13.73775558]
[1756697710493,0.06,197.92,197.91,60.39255667]
[1756697711870,0.06,197.92,197.91,24.76007827]
[1756697712073,0.06,197.92,197.91,0.14216157]
[1756697712280,0.06,197.92,197.91,59.8672765]
[1756697712576,0.06,197.92,197.91,199.8672765]
[1756697713162,0.06,197.92,197.91,225.8672765]
[1756697713576,0.06,197.92,197.91,219.89775558]
[1756697713782,0.06,197.92,197.91,230.92007827]
[1756697713963,0.06,197.92,197.91,204.92007827]
[1756697714169,0.06,197.96,197.93,39.59559401]
[1756697714370,0.06,197.96,197.93,45.7072765]
[1756697715281,0.06,197.96,197.93,86.37250562]
[1756697716083,0.06,197.96,197.93,65.42479683]
[1756697716269,1e-08,197.94,197.93,64.91956771]
[1756697716468,0.06,197.96,197.95,13.59559401]
[1756697716691,0.06,197.96,197.95,60.35245457]
[1756697717187,0.06,197.96,197.95,200.35245457]
[1756697717391,0.06,197.96,197.95,199.8472765]
[1756697718186,0.06,197.96,197.95,204.89905725]
[1756697718388,0.06,197.96,197.95,164.75905725]
[1756697718581,0.06,197.96,197.95,204.87905725]
[1756697718974,0.06,197.96,197.95,140.0]
[1756697719174,0.06,197.96,197.94,40.16]
[1756697719403,6.02952092,197.96,197.94,40.16]
[1756697720088,0.06,197.96,197.94,40.16]
[1756697720574,6.02952092,197.96,197.94,40.16]
[1756697720885,0.06,197.96,197.94,40.16]
[1756697721072,6.02952092,197.96,197.94,40.16]
[1756697721886,5.96952092,197.95,197.94,40.16]
[1756697722081,6.02952092,197.96,197.94,40.16]
[1756697722984,11.0811435,197.96,197.94,40.16]
[1756697723375,6.02952092,197.96,197.94,40.16]
[1756697723693,0.06,197.96,197.94,40.16]
[1756697725269,0.06,197.96,197.94,5.96952092]
[1756697725475,0.06,197.96,197.95,40.12]
[1756697725672,0.06,197.96,197.95,46.08952092]
[1756697725893,0.06,197.96,197.95,59.8272765]
[1756697726387,0.06,197.96,197.95,59.8072765]
[1756697727466,0.06,197.96,197.95,64.85905725]
[1756697727662,0.06,198.0,197.96,13.73775558]
[1756697727892,0.06,198.0,197.97,40.1]
[1756697728091,0.06,198.0,197.98,5.96952092]
[1756697728270,0.06,198.0,197.99,40.08]
[1756697731794,0.06,198.0,197.99,40.06]
[1756697732096,0.06,198.0,197.99,40.04]
[1756697732890,0.06,198.0,197.99,46.00952092]
[1756697733486,0.06,198.0,197.99,45.98952092]
[1756697734197,0.06,198.0,197.99,185.98952092]
[1756697735393,0.06,198.0,197.99,40.02]
[1756697735695,0.06,198.0,197.99,40.0]
[1756697735992,6.02952092,198.0,197.99,40.0]
[1756697736790,6.02952092,198.0,197.91,13.76775558]
[1756697736992,5.05101525,197.98,197.94,45.96952092]
[1756697737799,6.02952092,198.0,197.94,45.96952092]
[1756697738174,6.02952092,198.0,197.91,0.03]
[1756697738175,17.73683942,198.0,197.91,0.03]
[1756697738380,5.96952092,197.95,197.94,40.0]
[1756697739098,11.02130167,197.95,197.94,40.0]
[1756697739889,5.96952092,197.96,197.94,40.0]
[1756697740201,5.96952092,197.99,197.94,40.0]
[1756697740500,5.96952092,197.97,197.94,40.0]
[1756697740676,5.11055549,198.0,197.95,39.98]
[1756697740877,11.08007641,198.0,197.95,39.98]
[1756697741095,0.06,198.0,197.96,5.96952092]
[1756697741297,0.06,198.0,197.97,40.04]
[1756697741498,0.06,198.0,197.98,5.96952092]
[1756697741703,0.06,198.0,197.99,40.04]
[1756697742705,0.06,198.0,197.99,46.00952092]
[1756697743301,0.06,198.0,197.94,39.59559401]
[1756697743302,0.06,198.0,197.94,26.0]
[1756697743601,0.06,198.0,197.95,40.02]
[1756697743602,6.02952092,198.0,197.95,40.02]
[1756697743787,0.06,198.0,197.95,45.98952092]
[1756697743986,0.06,198.0,197.97,5.96952092]
[1756697744188,0.06,198.0,197.98,40.04]
[1756697744402,0.06,198.0,197.98,180.04]
[1756697746899,0.06,198.0,197.98,186.00952092]
[1756697747101,0.06,198.0,197.98,180.04]
[1756697747292,0.06,198.0,197.99,5.96952092]
[1756697747496,0.06,198.0,197.99,19.56511493]
[1756697747696,0.06,198.0,197.99,5.96952092]
[1756697748316,0.06,198.0,197.99,11.02028105]
[1756697748495,0.06,198.0,197.99,5.96952092]
[1756697748696,0.06,198.0,197.98,140.0]
[1756697749015,0.06,198.0,197.99,40.04]
[1756697749206,0.06,198.0,197.99,46.00952092]
[1756697753617,0.06,198.0,197.96,13.59559401]
[1756697753823,0.06,198.0,197.96,5.96952092]
[1756697754017,0.06,198.0,197.97,40.0]
[1756697754018,5.96952092,197.99,197.97,40.0]
[1756697754216,11.02071701,197.98,197.94,26.0]
[1756697754420,11.02031896,197.99,197.95,40.0]
[1756697754631,5.05079804,197.99,197.95,40.0]
[1756697754838,11.02031896,197.99,197.95,40.0]